[Event "44th Chess Olympiad Women 2022"]
[Site "Chennai"]
[Date "2022.07.29"]
[Round "1.28"]
[White "Mungunzul, Bat-Erdene"]
[Black "Al Balushi, Mariya"]
[Result "1-0"]
[ECO "D55"]
[WhiteElo "2163"]
[BlackElo "1660"]
[Annotator "TA"]
[PlyCount "89"]
[EventDate "2022.07.29"]
[EventType "team-tourn"]
[EventCountry "IND"]
[SourceTitle "playchess.com"]
[Source "ChessBase"]
[SourceQuality "1"]
[WhiteTeam "Mongolia"]
[BlackTeam "OMA"]
[WhiteTeamCountry "MGL"]
[TimeControl "40/5400+30:1800+30"]

{[%evp 11,89,6,44,0,8,1,30,2,32,35,24,22,60,60,69,57,97,89,110,107,94,94,117,102,97,93,77,59,68,62,58,34,70,76,80,79,75,4,3,5,2,-16,-13,-159,0,0,0,0,0,0,0,0,0,0,0,0,0,0,0,0,44,22,22,28,538,522,639,609,982,870,1120,1071,5702,5659,5477,5389,29965,29965,29965,5399]} 1. d4 {[%emt 0:00:03]} d5 {[%emt 0:00:06]} 2. c4 {[%emt 0:00:07]} e6 {[%emt 0:00:10]} 3. Nc3 {[%emt 0:00:13]} Nf6 {[%emt 0:00:13]} 4. Bg5 {[%emt 0:00:21]} Be7 {[%emt 0:00:34]} 5. Nf3 {[%emt 0:00:35]} O-O {[%emt 0:00:53]} 6. e3 {[%emt 0:00:24]} c5 {[%emt 0:05:30]} 7. Be2 {[%emt 0:05:02] D55: Queen's Gambit Declined: 4 Bg5 Be7: Lines without ...h6 and 6...h6 7 Bxf6.} h6 {[%emt 0:05:10]} 8. Bh4 {[%emt 0:01:06]} Nbd7 {[%emt 0:06:08]} 9. O-O {[%emt 0:04:01] White has an edge.} b6 {[%emt 0:04:38]} 10. cxd5 {[%emt 0:06:35]} Nxd5 {[%emt 0:05:49]} 11. Bxe7 {[%emt 0:02:43]} Qxe7 {[%emt 0:02:18]} (11... Nxe7 {with more complications.} 12. Qc2 Bb7 13. dxc5 Nxc5 14. b4 Nd7) 12. Nxd5 {[%emt 0:01:21]} exd5 {[%emt 0:01:00]} 13. dxc5 {[%emt 0:00:27] [#]} Nxc5 $146 {[%emt 0:03:12][%cal Bd7c5,Bc5a4,Ba4c3][%mdl 32]} ({Predecessor:} 13... Qxc5 14. Rc1 Qa5 15. b4 Qxb4 16. Qxd5 Rb8 17. Rxc8 Rbxc8 18. Qxd7 Qa5 19. Bd3 Qxa2 {1-0 (53) Garkauskas,O (1993)-Faria,M (1773) Itu 2010}) 14. Qxd5 {[%emt 0:02:34]} Bb7 {[%emt 0:00:46]} 15. Qe5 {[%emt 0:01:41]} Qxe5 {[%emt 0:10:46]} 16. Nxe5 {[%emt 0:00:12]} Rad8 {[%emt 0:03:28]} 17. Rfd1 {[%emt 0:06:29] Inhibits Rd2.} Na4 {[%emt 0:13:46]} 18. Rxd8 {[%emt 0:14:46]} Rxd8 {[%emt 0:00:15]} 19. b3 {[%emt 0:00:17]} Nc3 {[%emt 0:04:54]} 20. Bc4 {[%emt 0:00:34]} Bd5 {[%emt 0:00:16]} 21. Bf1 {[%emt 0:03:53]} Be4 {[%emt 0:01:33]} 22. f3 {[%emt 0:06:07]} Bb1 {[%emt 0:07:25]} 23. a4 {[%emt 0:00:43]} Rd1 {[%emt 0:06:50]} 24. Nc4 {[%emt 0:05:23]} (24. h4 $16) 24... Bc2 $1 $11 {[%emt 0:05:49][%csl LRa1,LRb3]} 25. Rxd1 {[%emt 0:05:29]} Nxd1 {[%emt 0:00:05][%mdl 4096] Endgame KBN-KBN} 26. Nd2 {[%emt 0:00:11]} Nxe3 {[%emt 0:00:30]} 27. Kf2 {[%emt 0:00:12]} (27. Be2 $11 {keeps the balance.}) 27... Nf5 $2 {[%emt 0:00:43] [#]} ({Black should play} 27... Nxf1 $17 28. Kxf1 f5) 28. Bc4 {[%emt 0:01:30]} Kf8 {[%emt 0:00:40]} 29. g4 {[%emt 0:02:56]} Nd6 {[%emt 0:00:52]} 30. Bd5 {[%emt 0:00:40]} Ke7 {[%emt 0:00:14]} 31. Ke3 {[%emt 0:00:16]} f5 {[%emt 0:02:08]} 32. Kd4 {[%emt 0:08:57]} fxg4 {[%emt 0:01:26]} 33. fxg4 {[%emt 0:00:13]} Bd1 {[%emt 0:00:07]} 34. h3 {[%emt 0:01:46]} Kf6 {[%emt 0:01:48]} 35. Nf1 {[%emt 0:00:33]} Kg5 {[%emt 0:02:13]} 36. Ke5 {[%emt 0:00:25]} Ne8 {[%emt 0:00:44]} 37. Ne3 {[%emt 0:02:11]} Kh4 $2 {[%emt 0:00:46][%mdl 8192] Black cannot hold the game after this.} 38. Nxd1 $18 {[%emt 0:00:13]} Kxh3 {[%emt 0:00:12]} 39. Be6 {[%emt 0:00:29]} Kh4 {[%emt 0:01:15]} 40. Ne3 {[%emt 0:00:16] [#] Threatens to win with Nd5.} Nc7 {[%emt 0:00:25]} 41. Bc8 {[%emt 0:30:18]} Ne8 {[%emt 0:30:30]} 42. Nd5 {[%emt 0:00:19]} Kg5 {[%emt 0:00:42]} 43. Bd7 {[%emt 0:00:09]} Nf6 {[%emt 0:00:36]} 44. Nxf6 {[%emt 0:00:09]} gxf6+ {[%emt 0:00:09]} 45. Ke4 {[%emt 0:00:24] Weighted Error Value: White=0.18 (very precise) /Black=0.56} (45. Kd6 $142 Kf4 46. Kc7 Ke5 47. Kb7 a5 48. Kxb6 Kd6 49. Bb5 Ke5 50. Kxa5) 1-0

[Event "44th Chess Olympiad Women 2022"]
[Site "Chennai"]
[Date "2022.07.29"]
[Round "1.28"]
[White "Al Ghafri, Alanoud"]
[Black "Munkhzul, Turmunkh"]
[Result "0-1"]
[ECO "B50"]
[WhiteElo "1259"]
[BlackElo "2277"]
[Annotator "TA"]
[PlyCount "58"]
[EventDate "2022.07.29"]
[EventType "team-tourn"]
[EventCountry "IND"]
[SourceTitle "playchess.com"]
[Source "ChessBase"]
[SourceQuality "1"]
[WhiteTeam "OMA"]
[BlackTeam "Mongolia"]
[BlackTeamCountry "MGL"]
[TimeControl "40/5400+30:1800+30"]

{[%evp 9,58,-38,-28,-31,-31,-46,-47,-62,-47,-47,-26,-77,-13,-18,0,-26,-39,-37,-39,-54,-9,-123,0,0,6,0,0,-201,-206,-212,-209,-736,-720,-29977,-29978,-29978,-29979,-29973,-29974,-5689,-2232,-29992,-29993,-29994,-29994,-29994,-29995,-29995,-29996,-29996,-29997]} 1. e4 {[%emt 0:00:03]} c5 {[%emt 0:00:25]} 2. b3 {[%emt 0:00:55]} d6 {[%emt 0:01:33]} 3. Nf3 {[%emt 0:03:03]} Nf6 {[%emt 0:01:47]} 4. Nc3 {[%emt 0:01:23]} g6 {[%emt 0:00:57]} 5. Bd3 {[%emt 0:03:45]} Bg7 {[%emt 0:00:16]} 6. O-O {[%emt 0:02:06] B50: Sicilian: 2...d6, Miscellaneous.} O-O {[%emt 0:00:26]} 7. h3 {[%emt 0:00:06]} Nc6 {[%emt 0:01:35]} 8. Bb2 {[%emt 0:02:33] [#] Black is slightly better.} Nh5 $146 {[%emt 0:05:35]} ({Predecessor:} 8... e5 9. Bc4 Nh5 10. Nd5 Ne7 11. b4 b6 12. a4 Nxd5 13. Bxd5 Rb8 14. b5 Nf4 {1-0 (45) Hammer,J (2652)-Mustaps,M (2362) Chess.com INT 2019}) 9. Rb1 {[%emt 0:15:10]} e5 {[%emt 0:03:39]} 10. Ne2 {[%emt 0:04:39]} (10. Re1 $11) 10... Nb4 {[%emt 0:01:28]} ({Black should play} 10... f5 $17 {...fxe4 is the strong threat.} 11. exf5 (11. Bc4+ Kh8 $17) 11... Bxf5 12. Bxf5 Rxf5) 11. Bc4 $11 {[%emt 0:06:35]} Be6 {[%emt 0:02:24]} 12. Bxe6 {[%emt 0:03:31]} fxe6 {[%emt 0:00:05]} 13. a3 {[%emt 0:01:03]} Nc6 {[%emt 0:00:47][%cal Of8f3]} 14. d3 {[%emt 0:08:11]} Qe7 {[%emt 0:09:01][%cal Of8f3]} (14... Rxf3 $5 15. gxf3 Qg5+ 16. Kh2 Qh4 $11) 15. Qd2 {[%emt 0:02:06] [#]} (15. Bc1 $11) 15... Nf4 {[%emt 0:06:20]} (15... Rxf3 $1 $17 {[%mdl 512]} 16. gxf3 Qh4) 16. Nxf4 {[%emt 0:01:55]} Rxf4 {[%emt 0:00:06]} 17. Qe2 {[%emt 0:04:59]} (17. b4 {keeps more tension.} Rxf3 18. gxf3 Qh4 19. f4) 17... Raf8 {[%emt 0:02:47]} 18. Bc1 $2 {[%emt 0:07:01] [#]} (18. c3 $11) 18... Rxf3 $1 $19 {[%emt 0:03:43][%mdl 512]} 19. gxf3 {[%emt 0:00:26]} Nd4 {[%emt 0:00:08][%csl LRe2,LRf3][%cal Bc6d4,Bd4e2,Be2f4][%mdl 32]} 20. Qe3 {[%emt 0:10:46]} (20. Qd1) 20... Rf4 {[%emt 0:02:19][%mdl 64] White must now prevent ...Qg5+. Deflection} 21. Qxf4 {[%emt 0:07:51]} exf4 {[%emt 0:03:43]} 22. Bxf4 {[%emt 0:00:07]} Ne2+ {[%emt 0:00:03]} 23. Kh2 {[%emt 0:00:51]} Nxf4 {[%emt 0:00:05]} 24. Rg1 {[%emt 0:01:25]} Be5 {[%emt 0:00:13] ( -> ...Qh4)} 25. Kh1 {[%emt 0:05:14]} Qh4 {[%emt 0:00:21][%cal Rh4h3] Black mates.} 26. Rg2 {[%emt 0:01:59]} Qxh3+ {[%emt 0:00:13]} 27. Rh2 {[%emt 0:00:11]} Qxf3+ {[%emt 0:00:04]} 28. Kg1 {[%emt 0:00:22]} Ne2+ {[%emt 0:00:07]} 29. Kf1 {[%emt 0:00:19]} Bxh2 {[%emt 0:00:09] Weighted Error Value: White=1.13/Black=0.31} 0-1

[Event "44th Chess Olympiad Women 2022"]
[Site "Chennai"]
[Date "2022.07.29"]
[Round "1.29"]
[White "Heinatz, Gundula"]
[Black "Vilhete, Vania Fausto Da T."]
[Result "1-0"]
[WhiteElo "2196"]
[BlackElo "1701"]
[Annotator "TA"]
[PlyCount "43"]
[EventDate "2022.07.29"]
[EventType "team-tourn"]
[EventCountry "IND"]
[SourceTitle "playchess.com"]
[Source "ChessBase"]
[SourceQuality "1"]
[WhiteTeam "Switzerland"]
[BlackTeam "Mozambique"]
[WhiteTeamCountry "SUI"]
[BlackTeamCountry "MOZ"]
[TimeControl "40/5400+30:1800+30"]

{[%evp 12,13,30,8]} 1. d4 {[%emt 0:00:05]} d5 {[%emt 0:00:12]} 2. Nf3 {[%emt 0:00:04]} e6 {[%emt 0:00:33]} 3. g3 {[%emt 0:00:24]} Nf6 {[%emt 0:00:26]} 4. Bg2 {[%emt 0:00:05]} c5 {[%emt 0:01:11]} 5. O-O {[%emt 0:01:02]} Nc6 {[%emt 0:07:18]} 6. c4 {[%emt 0:01:23]} dxc4 {[%emt 0:03:06] The main line 6...dxc4 scores better than 6...Be7.} 7. Ne5 {[%emt 0:01:14][%mdl 32768] [#] Loss on time!?} {Predecessor:} Bd7 $146 {E04: Open Catalan: 5 Nf3.} 8. Nxc4 cxd4 9. Bf4 Nd5 10. Nd6+ Bxd6 11. Bxd6 Nde7 12. Nd2 O-O 13. Qb3 b6 14. Rac1 Rc8 15. Nc4 Re8 16. Ba3 Nf5 17. g4 b5 18. Nd6 Nxd6 19. Bxd6 Na5 20. Qg3 Nc4 21. b3 Nxd6 22. Qxd6 {0-1 (30) Gelfand,B (2668)-Anand,V (2756) Leon 2022} 1-0

[Event "44th Chess Olympiad Women 2022"]
[Site "Chennai"]
[Date "2022.07.29"]
[Round "1.29"]
[White "De Seroux, Camille"]
[Black "Naira Sinoia"]
[Result "1-0"]
[ECO "C41"]
[WhiteElo "2106"]
[BlackElo "1116"]
[Annotator "TA"]
[PlyCount "55"]
[EventDate "2022.07.29"]
[EventType "team-tourn"]
[EventCountry "IND"]
[SourceTitle "playchess.com"]
[Source "ChessBase"]
[SourceQuality "1"]
[WhiteTeam "Switzerland"]
[BlackTeam "Mozambique"]
[WhiteTeamCountry "SUI"]
[BlackTeamCountry "MOZ"]
[TimeControl "40/5400+30:1800+30"]

{[%evp 9,54,33,114,44,37,37,42,37,32,24,52,22,29,29,54,56,122,112,154,144,202,119,136,98,99,94,121,90,106,100,82,68,297,294,402,414,412,391,435,445,1761,1784,1518,1472,29995,29994,29999]} 1. e4 {[%emt 0:00:04]} e5 {[%emt 0:00:31]} 2. Nf3 {[%emt 0:00:13]} d6 {[%emt 0:00:24]} 3. d4 {[%emt 0:00:21]} exd4 {[%emt 0:00:54]} 4. Nxd4 {[%emt 0:00:13]} Nf6 {[%emt 0:00:12]} 5. Nc3 {[%emt 0:00:22]} c5 {[%emt 0:01:19] [#]} ({Black should try} 5... Be7 $14) 6. Nf3 {[%emt 0:00:58] C41: Philidor Defence.} (6. Bb5+ $1 $16 Nbd7 7. Nf5) 6... Nc6 $14 {[%emt 0:00:26]} 7. Bc4 {[%emt 0:02:23]} Be7 {[%emt 0:01:29]} 8. O-O {[%emt 0:00:22] White is slightly better.} O-O {[%emt 0:00:09]} 9. h3 {[%emt 0:01:59]} Na5 {[%emt 0:07:26]} 10. Be2 {[%emt 0:03:43]} Be6 {[%emt 0:00:15] [#]} 11. Bf4 $146 {[%emt 0:03:27]} ({Predecessor:} 11. Ng5 Bd7 12. a3 h6 13. Nf3 Be6 14. Re1 d5 15. exd5 Nxd5 16. Nxd5 Bxd5 17. Bd2 {1-0 (49) Mosenya,N (2041)-Mulenga,P (2146) Lusaka 2017}) 11... Qb6 {[%emt 0:01:06]} 12. b3 {[%emt 0:01:56]} Rfd8 {[%emt 0:00:25]} (12... Nc6 $14) 13. Nd5 $16 {[%emt 0:01:42]} Nxd5 {[%emt 0:02:23]} 14. exd5 {[%emt 0:00:07]} Bf5 {[%emt 0:00:20]} (14... Bd7 $16 15. Bd3 Re8) 15. Qd2 {[%emt 0:05:57]} (15. c3 $18) 15... Qc7 {[%emt 0:02:48]} 16. Rad1 {[%emt 0:10:30]} b6 {[%emt 0:03:26]} 17. Rfe1 {[%emt 0:01:10]} Nb7 {[%emt 0:00:55]} 18. Bb5 {[%emt 0:05:47]} a6 {[%emt 0:00:35]} 19. Bc6 {[%emt 0:05:47]} Rab8 {[%emt 0:00:35]} 20. Bg5 {[%emt 0:04:52] 0x0.0024d77bbbc5dp-1022s more active pieces. The black rooks are badly placed.} Bxg5 {[%emt 0:01:30] A mistake that costs the game.} ({Better is} 20... f6 $1 $14) 21. Qxg5 $18 {[%emt 0:02:01]} ({Weaker is} 21. Nxg5 Bg6 $11) 21... Bxc2 {[%emt 0:05:39]} 22. Re7 {[%emt 0:01:51]} Qc8 {[%emt 0:00:42]} (22... h6 $2 23. Rxc7 hxg5 24. Rd2 $18) 23. Rd2 {[%emt 0:02:20]} h6 {[%emt 0:02:31]} 24. Qh4 {[%emt 0:01:49]} g5 {[%emt 0:04:08]} (24... Bg6 $142 25. Bxb7 Qf5 26. Bxa6 b5) 25. Qxh6 {[%emt 0:01:34]} Bg6 {[%emt 0:00:22]} 26. Nxg5 {[%emt 0:00:56][%cal Oe7f7] Rxf7! would kill now.} Rf8 {[%emt 0:01:33] [#]} 27. Ne6 $1 {[%emt 0:00:35][%csl Ge6][%cal Rh6g7][%mdl 512]} Na5 {[%emt 0:02:02]} (27... Qxe6 28. dxe6) 28. Qg7# {[%emt 0:00:41] Weighted Error Value: White=0.18 (very precise) /Black=0.74} 1-0

[Event "44th Chess Olympiad Women 2022"]
[Site "Chennai"]
[Date "2022.07.29"]
[Round "1.29"]
[White "Sitoe, Cheila Andre"]
[Black "Stoeri, Laura"]
[Result "1-0"]
[WhiteElo "1574"]
[BlackElo "2084"]
[Annotator "TA"]
[PlyCount "31"]
[EventDate "2022.07.29"]
[EventType "team-tourn"]
[EventCountry "IND"]
[SourceTitle "playchess.com"]
[Source "ChessBase"]
[SourceQuality "1"]
[WhiteTeam "Mozambique"]
[BlackTeam "Switzerland"]
[WhiteTeamCountry "MOZ"]
[BlackTeamCountry "SUI"]
[TimeControl "40/5400+30:1800+30"]

{[%evp 12,16,0,0,0,-3,0]} 1. e4 {[%emt 0:00:03]} e5 {[%emt 0:00:06]} 2. Nf3 {[%emt 0:00:17]} Nc6 {[%emt 0:00:06]} 3. Bc4 {[%emt 0:00:10]} Nf6 {[%emt 0:00:16]} 4. d3 {[%emt 0:00:35]} Be7 {[%emt 0:00:07]} 5. O-O {[%emt 0:00:48]} O-O {[%emt 0:00:30]} 6. Bg5 {[%emt 0:02:22]} d6 {[%emt 0:00:30]} 7. h3 {[%emt 0:00:25]} Na5 {[%emt 0:05:11] C55: Two Knights: 4 d3, 4 d4 exd4 5 e5 and Max Lange Attack.} 8. Nbd2 {[%emt 0:02:10]} a6 {[%emt 0:01:29][%mdl 32768] [#] An uneventful encounter. Loss on time!?} {Predecessor:} 9. a3 $146 Nxc4 10. Nxc4 Be6 11. Ne3 Qd7 12. Nh2 h6 13. Bh4 Rae8 14. Qf3 Bd8 15. Nf5 Bxf5 16. exf5 {0-1 (47) Saraci,K (1919)-Seitaj,I (2354) Pristina 2019} 1-0

[Event "44th Chess Olympiad Women 2022"]
[Site "Chennai"]
[Date "2022.07.29"]
[Round "1.29"]
[White "Castro, Neusa Aridas De"]
[Black "Hakimifard, Ghazal"]
[Result "1-0"]
[WhiteElo "1531"]
[BlackElo "2296"]
[Annotator "TA"]
[PlyCount "34"]
[EventDate "2022.07.29"]
[EventType "team-tourn"]
[EventCountry "IND"]
[SourceTitle "playchess.com"]
[Source "ChessBase"]
[SourceQuality "1"]
[WhiteTeam "Mozambique"]
[BlackTeam "Switzerland"]
[WhiteTeamCountry "MOZ"]
[BlackTeamCountry "SUI"]
[TimeControl "40/5400+30:1800+30"]

{[%evp 9,21,0,0,-2,0,0,0,0,0,0,0,0,0,0]} 1. e4 {[%emt 0:00:42]} c5 {[%emt 0:00:07]} 2. Nf3 {[%emt 0:00:21]} e6 {[%emt 0:00:06]} 3. Bc4 {[%emt 0:01:23]} a6 {[%emt 0:00:41]} 4. d3 {[%emt 0:03:28]} b5 {[%emt 0:00:30]} 5. Bb3 {[%emt 0:00:13]} Bb7 {[%emt 0:00:08] The position is equal.} 6. c3 {[%emt 0:01:46] B40: Sicilian: 2...e6, Unusual lines.} d6 {[%emt 0:03:46]} 7. Be3 {[%emt 0:00:38]} Nf6 {[%emt 0:00:17]} 8. O-O {[%emt 0:02:37]} Be7 {[%emt 0:00:55]} 9. Nbd2 {[%emt 0:00:59]} O-O {[%emt 0:01:38]} 10. Re1 {[%emt 0:00:08]} Nbd7 {[%emt 0:03:42]} 11. Bc2 {[%emt 0:00:11][%mdl 32768] [#] Not much happened in this game.  Weighted Error Value: White=0.00 (flawless) /Black=0.00 (flawless) . Loss on time!?} {Predecessor:} Rc8 $146 12. Bg5 h6 13. Bh4 Nh5 14. Bxe7 Qxe7 15. Ne5 Ndf6 16. Ng4 e5 17. Nxf6+ Nxf6 {0-1 (69) Van Hall,D-De Winter,G Vlissingen 1999} 1-0

[Event "44th Chess Olympiad Women 2022"]
[Site "Chennai"]
[Date "2022.07.29"]
[Round "1.30"]
[White "Sinitsina, Anastassia"]
[Black "Eman Sawan"]
[Result "1-0"]
[ECO "B99"]
[WhiteElo "2175"]
[BlackElo "1847"]
[Annotator "TA"]
[PlyCount "75"]
[EventDate "2022.07.29"]
[EventType "team-tourn"]
[EventCountry "IND"]
[SourceTitle "playchess.com"]
[Source "ChessBase"]
[SourceQuality "1"]
[WhiteTeam "Estonia"]
[BlackTeam "Palestine"]
[WhiteTeamCountry "EST"]
[BlackTeamCountry "PLE"]
[TimeControl "40/5400+30:1800+30"]

{[%evp 25,75,71,64,63,67,1,54,49,55,58,83,43,55,0,0,0,125,104,116,109,122,101,95,92,122,81,274,269,404,385,370,364,497,493,979,977,1281,829,2625,2697,29985,29986,29986,29987,29991,29992,29992,29993,29993,29994,29994,29995]} 1. e4 {[%emt 0:00:06]} c5 {[%emt 0:00:08]} 2. Nf3 {[%emt 0:00:11]} d6 {[%emt 0:00:09]} 3. d4 {[%emt 0:00:13]} cxd4 {[%emt 0:00:09]} 4. Nxd4 {[%emt 0:00:04]} Nf6 {[%emt 0:00:18]} 5. Nc3 {[%emt 0:00:34]} a6 {[%emt 0:00:25]} 6. Bg5 {[%emt 0:00:29]} e6 {[%emt 0:00:27]} 7. f4 {[%emt 0:00:34]} Be7 {[%emt 0:00:15]} 8. Qf3 {[%emt 0:00:29]} Qc7 {[%emt 0:00:35]} 9. O-O-O {[%emt 0:01:26]} Nbd7 {[%emt 0:00:49]} 10. g4 {[%emt 0:04:24][%cal Bg2g4,Bg4g5][%mdl 32]} b5 {[%emt 0:03:06]} 11. a3 {[%emt 0:03:03]} Bb7 {[%emt 0:00:45]} 12. Bxf6 {[%emt 0:02:31]} Nxf6 {[%emt 0:01:22]} 13. g5 {[%emt 0:02:02]} Nd7 {[%emt 0:00:31][%cal Od6d5]} 14. h4 {[%emt 0:04:35] B99: Sicilian Najdorf: 6 Bg5 e6 7 f4 Be7 8 Qf3 Qc7 9 0-0-0 Nbd7.} Rc8 {[%emt 0:24:15][%cal Od6d5]} 15. Rh2 {[%emt 0:03:16]} (15. Bh3 $14) 15... Qb6 {[%emt 0:16:56]} ({Black should play} 15... d5 $11) 16. f5 $14 {[%emt 0:10:29] White is slightly better.} e5 {[%emt 0:04:41]} 17. Nb3 {[%emt 0:02:41] [#]} b4 $146 {[%emt 0:05:53]} ({Predecessor:} 17... Bc6 18. Nd5 Bxd5 19. Rxd5 Qc7 20. Rhd2 h6 21. Qh5 Nb6 22. R5d3 Nc4 23. Rg2 Qc6 {½-½ (31) Malec,R (1789)-Rykala,M (1641) Polanica Zdroj 2008}) 18. axb4 {[%emt 0:00:54]} Qxb4 {[%emt 0:01:18]} 19. f6 {[%emt 0:12:33]} (19. Kb1 $14) 19... gxf6 $11 {[%emt 0:04:25]} 20. Bh3 {[%emt 0:01:28]} Rc4 {[%emt 0:08:35]} (20... fxg5 $11 21. Bxd7+ Kxd7) 21. Bxd7+ $16 {[%emt 0:01:37]} Kxd7 {[%emt 0:01:59]} 22. gxf6 {[%emt 0:00:06]} Bf8 {[%emt 0:01:57]} 23. Qh5 $36 {[%emt 0:02:49][%mdl 2048] Keeping Black busy. Dancing on a razor blade. 0x0.0024d783c2b2dp-1022s more active pieces.} Ke8 {[%emt 0:03:12]} 24. Rhd2 {[%emt 0:06:25][%cal Oh5e5]} Qb6 {[%emt 0:02:51]} (24... Bxe4 $2 25. Qxe5+ $3 {[%mdl 512]} Kd8 26. Nxe4 Rxe4 27. Qd5 $18) 25. Rd3 {[%emt 0:01:27]} a5 $2 {[%emt 0:03:01] This move loses the game for Black.} (25... Bxe4 $2 26. Nxe4 Rxe4 27. Rc3 $18) (25... Rg8 $16 {keeps fighting.}) 26. Nd2 $18 {[%emt 0:00:47][%cal Bb3d2,Bd2f3,Bf3g5][%mdl 32]} Rd4 {[%emt 0:02:22]} (26... Rc8 $142 27. Nf3 Qd8) 27. Nf3 {[%emt 0:01:38] aiming for Nxe5.} Rxd3 {[%emt 0:00:27]} 28. Rxd3 {[%emt 0:00:21]} Qf2 {[%emt 0:03:33]} 29. Nd1 {[%emt 0:03:23][%cal Bc3d1,Bd1e3,Be3c4][%mdl 32]} Qg3 {[%emt 0:01:06]} (29... Qe2 $142 30. Rc3 Qxe4) 30. Rb3 {[%emt 0:01:05]} Qf4+ {[%emt 0:00:39]} 31. Kb1 {[%emt 0:00:36]} Qxe4 {[%emt 0:01:11]} 32. Ng5 $1 {[%emt 0:00:14][%csl LRe4,LRf7]} Qd5 {[%emt 0:00:23]} 33. Ne3 {[%emt 0:01:23] White mates.} Qh1+ {[%emt 0:00:57] [#]} 34. Ka2 $1 {[%emt 0:00:05]} Bd5 {[%emt 0:00:13]} 35. c4 {[%emt 0:00:33]} Bxc4 {[%emt 0:02:46]} 36. Nxc4 {[%emt 0:00:04]} Qd5 {[%emt 0:00:06]} 37. Rb8+ {[%emt 0:00:33]} Kd7 {[%emt 0:00:09]} 38. Qg4+ {[%emt 0:00:03] Weighted Error Value: White=0.12 (very precise) /Black=0.71} 1-0

[Event "44th Chess Olympiad Women 2022"]
[Site "Chennai"]
[Date "2022.07.29"]
[Round "1.30"]
[White "Heba, Assi"]
[Black "Olde, Margareth"]
[Result "0-1"]
[ECO "D05"]
[WhiteElo "1449"]
[BlackElo "2235"]
[Annotator "TA"]
[PlyCount "33"]
[EventDate "2022.07.29"]
[EventType "team-tourn"]
[EventCountry "IND"]
[SourceTitle "playchess.com"]
[Source "ChessBase"]
[SourceQuality "1"]
[WhiteTeam "Palestine"]
[BlackTeam "Estonia"]
[WhiteTeamCountry "PLE"]
[BlackTeamCountry "EST"]
[TimeControl "40/5400+30:1800+30"]

{[%evp 16,22,16,12,9,13,18,12,9]} 1. d4 {[%emt 0:00:30]} Nf6 {[%emt 0:00:10]} 2. Nf3 {[%emt 0:00:00]} e6 {[%emt 0:00:10]} 3. e3 {[%emt 0:00:08]} c5 {[%emt 0:00:36]} 4. b3 {[%emt 0:00:47]} cxd4 {[%emt 0:00:29]} 5. exd4 {[%emt 0:01:36]} d5 {[%emt 0:00:11]} 6. Bb2 {[%emt 0:02:30]} Bd6 {[%emt 0:00:22]} 7. Bd3 {[%emt 0:00:23]} Nc6 {[%emt 0:00:20]} 8. a3 {[%emt 0:00:13]} O-O {[%emt 0:00:26]} 9. O-O {[%emt 0:00:35] The position is equal.} b6 {[%emt 0:00:13] D05: Colle System with ...e6.} 10. Nbd2 {[%emt 0:00:21]} Bb7 {[%emt 0:00:36]} 11. Ne5 {[%emt 0:00:48]} Rc8 {[%emt 0:01:32][%mdl 32768] [#] An uneventful encounter.  Weighted Error Value: White=0.03 (flawless) /Black=0.00 (flawless) . Loss on time!? 11...Ne7 is more advanced technology.} {Predecessor:} 12. Re1 $146 Ne7 13. Qe2 Ng6 14. g3 b5 15. Rac1 a6 16. b4 Bxe5 17. dxe5 {1-0 (61) So,W (2815)-Carlsen,M (2832) Chess.com INT 2017} 0-1